bitfinex/quotes_BTCUSD_20230831
["timestamp","ask_amount","ask_price","bid_price","bid_amount"]
[1693523319173,2.25409621,26048.0,26047.0,0.52688848]
[1693523319726,2.39241448,26048.0,26047.0,0.52688848]
[1693523322959,2.20818244,26048.0,26047.0,0.52688848]
[1693523324034,2.20818244,26048.0,26047.0,2.37233448]
[1693523324205,2.01037309,26048.0,26047.0,2.41222614]
[1693523324579,2.01037309,26048.0,26047.0,1.83634414]
[1693523327798,2.01036641,26048.0,26047.0,1.83634414]
[1693523336882,2.01036641,26048.0,26047.0,1.79645248]
[1693523337092,2.01036641,26048.0,26047.0,1.83634414]
[1693523340121,2.01036641,26048.0,26047.0,1.79645248]
[1693523340296,2.01036641,26048.0,26047.0,1.83634414]
[1693523340496,2.01036641,26048.0,26047.0,0.56678014]
[1693523340696,2.05646753,26048.0,26047.0,0.56678014]
[1693523342712,2.14865813,26048.0,26047.0,0.56678014]
[1693523344319,2.05646753,26048.0,26047.0,0.56678014]
[1693523344727,2.24087201,26048.0,26047.0,0.56678014]
[1693523346945,2.39937201,26048.0,26047.0,0.56678014]
[1693523347750,2.21496753,26048.0,26047.0,0.56678014]
[1693523348288,2.21496753,26048.0,26047.0,0.54688848]
[1693523349497,2.39937201,26048.0,26047.0,0.54688848]
[1693523349698,2.21496753,26048.0,26047.0,0.54688848]
[1693523350066,2.16885461,26048.0,26047.0,0.54688848]
[1693523350889,2.16885461,26048.0,26047.0,0.52688848]
[1693523351086,2.30715797,26048.0,26047.0,0.52688848]
[1693523351327,2.16885461,26048.0,26047.0,0.52688848]
[1693523351668,2.30715797,26048.0,26047.0,0.52688848]
[1693523352513,2.30713653,26048.0,26047.0,0.52688848]
[1693523353584,2.21494759,26048.0,26047.0,0.52688848]
[1693523354885,4.30316758,26048.0,26047.0,0.1398017]
[1693523355088,4.25707105,26048.0,26047.0,0.1398017]
[1693523355289,4.59986284,26048.0,26047.0,0.1398017]
[1693523355497,4.48719047,26048.0,26047.0,0.10834273]
[1693523355919,4.76375731,26048.0,26047.0,0.10834273]
[1693523356120,4.76375731,26048.0,26047.0,0.104]
[1693523356121,4.75975731,26048.0,26047.0,0.104]
[1693523356316,4.75975731,26048.0,26047.0,0.004]
[1693523356562,4.76275731,26048.0,26047.0,0.005]
[1693523357016,4.75975731,26048.0,26047.0,0.004]
[1693523357188,4.75575731,26048.0,26046.0,0.0352]
[1693523357397,0.5651493,26047.0,26046.0,0.0352]
[1693523357599,2.2927953,26047.0,26046.0,0.1352]
[1693523358586,2.49309965,26047.0,26046.0,0.1352]
[1693523359026,2.64679965,26047.0,26046.0,0.1352]
[1693523359768,2.27652548,26047.0,26046.0,0.1362]
[1693523359964,2.47426332,26047.0,26046.0,0.1362]
[1693523360367,2.42815541,26047.0,26046.0,0.1362]
[1693523361916,2.31035541,26047.0,26046.0,0.1362]
[1693523362116,2.31035541,26047.0,26046.0,0.13650797]
[1693523362532,2.31035541,26047.0,26046.0,0.15241288]
[1693523364539,2.44851555,26047.0,26046.0,0.15241288]
[1693523365085,2.44851555,26047.0,26046.0,0.13650797]
[1693523365293,2.44851555,26047.0,26046.0,0.1362]
[1693523365621,2.44851555,26047.0,26046.0,0.15210491]
[1693523365850,2.31035541,26047.0,26046.0,0.15210491]
[1693523366259,2.31035541,26047.0,26046.0,0.15241288]
[1693523366459,2.11261757,26047.0,26046.0,0.15241288]
[1693523366667,2.3377691,26047.0,26046.0,0.13650797]
[1693523367130,2.3377691,26047.0,26046.0,0.1362]
[1693523367636,2.47590532,26047.0,26046.0,0.1362]
[1693523368185,2.29163375,26047.0,26046.0,0.1362]
[1693523368580,2.29163375,26047.0,26046.0,0.15210491]
[1693523369114,2.29163375,26047.0,26046.0,0.15241288]
[1693523376963,2.40943375,26047.0,26046.0,0.15241288]
[1693523381552,2.59370532,26047.0,26046.0,0.15241288]
[1693523382970,2.4555691,26047.0,26046.0,0.15241288]
[1693523383170,2.59373361,26047.0,26046.0,0.15241288]
[1693523383996,2.4555691,26047.0,26046.0,0.15241288]
[1693523384325,2.3018691,26047.0,26046.0,0.15241288]
[1693523387104,2.4658691,26047.0,26046.0,0.15241288]
[1693523389524,2.52594365,26047.0,26046.0,0.15241288]
[1693523390099,2.30079212,26047.0,26046.0,0.15241288]
[1693523390298,2.5311716,26047.0,26046.0,0.15241288]
[1693523391091,2.5311716,26047.0,26046.0,0.13650797]
[1693523392220,2.5311716,26047.0,26046.0,0.1362]
[1693523393331,2.7585896,26047.0,26046.0,0.1362]
[1693523393528,2.5311716,26047.0,26046.0,0.1362]
[1693523393897,2.74112716,26047.0,26046.0,0.1362]
[1693523394521,2.55685559,26047.0,26046.0,0.1362]
[1693523395146,2.55685559,26047.0,26046.0,0.13650797]
[1693523395722,2.55685559,26047.0,26046.0,0.15234277]
[1693523399664,2.32647611,26047.0,26046.0,0.15234277]
[1693523405084,2.11652055,26047.0,26046.0,0.15234277]
[1693523405350,2.35360895,26047.0,26046.0,0.15234277]
[1693523405546,2.11652055,26047.0,26046.0,0.15234277]
[1693523406522,2.11652208,26047.0,26046.0,0.15234277]
[1693523407378,2.34507927,26047.0,26046.0,0.15234277]
[1693523408951,2.11652208,26047.0,26046.0,0.15234277]
[1693523409753,2.38267709,26047.0,26046.0,0.15234277]
[1693523414498,2.26487709,26047.0,26046.0,0.15234277]
[1693523416630,2.11652208,26047.0,26046.0,0.15234277]
[1693523416834,2.32374109,26047.0,26046.0,0.15234277]
[1693523423037,2.15974109,26047.0,26046.0,0.15234277]
[1693523424138,2.32454109,26047.0,26046.0,0.15234277]
[1693523424657,2.11732208,26047.0,26046.0,0.15234277]
[1693523425072,2.35629643,26047.0,26046.0,0.15234277]
[1693523425274,2.11732208,26047.0,26046.0,0.15234277]
[1693523425522,2.33838383,26047.0,26046.0,0.15234277]
[1693523427506,2.33838383,26047.0,26046.0,0.13650797]
[1693523427910,2.33838383,26047.0,26046.0,0.1522493]
[1693523429749,0.27764838,26047.0,26046.0,1.80894408]
[1693523429912,0.23151575,26047.0,26046.0,1.80894408]
[1693523430302,0.13838188,26047.0,26046.0,1.80894408]
[1693523430921,0.10925304,26047.0,26046.0,1.80894408]
[1693523431341,0.021,26047.0,26046.0,1.81694408]
[1693523431542,0.017,26047.0,26046.0,1.80894408]
[1693523431814,0.021,26047.0,26046.0,1.81694408]
[1693523432280,0.021,26047.0,26046.0,1.82975795]
[1693523432652,0.023,26047.0,26046.0,1.83575795]
[1693523433010,0.004,26047.0,26046.0,1.82875795]
[1693523433583,0.008,26047.0,26046.0,1.83475795]
[1693523436560,0.008,26047.0,26046.0,2.39223795]
[1693523436766,0.008,26047.0,26046.0,3.07522195]
[1693523436969,0.008,26047.0,26046.0,3.07672195]
[1693523437178,0.008,26047.0,26046.0,3.08332195]
[1693523437409,0.008,26047.0,26046.0,3.08530195]
[1693523437633,0.008,26047.0,26046.0,3.10534195]
[1693523437835,0.008,26047.0,26046.0,3.09868195]
[1693523438038,0.008,26047.0,26046.0,3.07700195]
[1693523438039,0.004,26047.0,26046.0,3.07700195]
[1693523438240,0.004,26047.0,26046.0,3.07724195]
[1693523438448,0.008,26047.0,26046.0,3.11264195]
[1693523438628,1.91016417,26048.0,26047.0,0.4988]
[1693523438908,1.91016417,26048.0,26047.0,2.85133278]
[1693523439108,1.91016417,26048.0,26047.0,2.92219278]
[1693523439325,1.91016417,26048.0,26047.0,2.85163093]
[1693523440404,1.91316417,26048.0,26047.0,2.88863093]
[1693523441024,1.91616417,26048.0,26047.0,2.92563093]
[1693523443583,1.91616417,26048.0,26047.0,2.34974893]
[1693523443830,1.91616417,26048.0,26047.0,0.77418493]
[1693523444056,1.91616417,26048.0,26047.0,0.65638493]
[1693523444460,1.91616417,26048.0,26047.0,0.68493411]
[1693523445343,2.15844268,26048.0,26047.0,0.60493411]
[1693523445536,3.31016068,26048.0,26047.0,0.21784733]
[1693523445744,3.40241372,26048.0,26047.0,0.21784733]
[1693523446375,3.39941372,26048.0,26047.0,0.18084733]
[1693523446589,4.13957272,26048.0,26047.0,0.18084733]
[1693523446791,3.56071372,26048.0,26047.0,0.14384733]
[1693523447148,2.66232317,26048.0,26047.0,0.14784733]
[1693523447351,2.08646417,26048.0,26047.0,0.14784733]
[1693523448373,2.08546417,26048.0,26047.0,0.14484733]
[1693523448710,2.08646417,26048.0,26047.0,0.14784733]
[1693523450716,2.66232317,26048.0,26047.0,0.14784733]
[1693523456964,2.08646417,26048.0,26047.0,0.14784733]
[1693523457301,2.08646417,26048.0,26047.0,0.04784733]
[1693523457456,2.08646417,26048.0,26047.0,0.0747513]
[1693523457990,0.20943773,26047.0,26045.0,0.1127513]
[1693523458189,0.20943773,26047.0,26046.0,0.48708678]
[1693523458370,0.20943773,26047.0,26046.0,0.1]
[1693523458566,0.20943773,26047.0,26045.0,0.49983808]
[1693523459072,0.21143773,26047.0,26046.0,0.1]
[1693523459457,0.21143773,26047.0,26046.0,0.12525859]
[1693523459605,0.36283773,26047.0,26046.0,0.12525859]
[1693523459801,0.36383773,26047.0,26046.0,0.12525859]
[1693523460209,0.36283773,26047.0,26046.0,0.12525859]
[1693523460642,0.36183773,26047.0,26046.0,0.12825859]
[1693523461050,0.36383773,26047.0,26046.0,0.04385859]
[1693523461224,0.36383773,26047.0,26046.0,0.14385859]
[1693523464089,0.36383773,26047.0,26046.0,0.06910542]
[1693523467538,0.36383773,26047.0,26045.0,0.3561922]
[1693523467747,0.24273992,26046.0,26045.0,0.3561922]
[1693523467952,0.24273992,26046.0,26045.0,0.4561922]
[1693523468704,0.24273992,26046.0,26045.0,0.47996534]
[1693523468919,0.24273992,26046.0,26045.0,0.49296534]
[1693523469125,0.24273992,26046.0,26045.0,0.49496534]
[1693523469326,0.24273992,26046.0,26045.0,0.49296534]
[1693523469776,0.24473992,26046.0,26045.0,0.50796534]
[1693523470184,0.24473992,26046.0,26045.0,0.49496534]
[1693523470589,0.24773992,26046.0,26045.0,0.51396534]
[1693523479077,0.40213992,26046.0,26045.0,0.51396534]
[1693523487228,0.49421834,26046.0,26045.0,0.51396534]
[1693523487805,0.49421834,26046.0,26045.0,0.48896534]
[1693523490298,0.25147842,26046.0,26045.0,0.48896534]
[1693523501654,0.09707842,26046.0,26045.0,0.48896534]
[1693523502523,0.3609216,26046.0,26045.0,0.48896534]
[1693523502723,0.5267216,26046.0,26045.0,0.48896534]
[1693523504866,0.5017216,26046.0,26045.0,0.48896534]
[1693523505400,0.5017216,26046.0,26045.0,2.33454334]
[1693523505401,0.07207842,26046.0,26045.0,2.33454334]
[1693523506204,2.23243866,26048.0,26045.0,2.40936334]
[1693523506438,2.23243866,26048.0,26047.0,0.1178]
[1693523506661,1.91016417,26048.0,26047.0,2.75633278]
[1693523507034,1.91016417,26048.0,26047.0,2.82857278]
[1693523507249,1.92216417,26048.0,26047.0,2.82839278]
[1693523507414,1.92216417,26048.0,26047.0,2.82827278]
[1693523507613,1.92216417,26048.0,26047.0,2.82815278]
[1693523507951,1.92216417,26048.0,26047.0,2.82785278]
[1693523508162,1.92316417,26048.0,26047.0,2.82731278]
[1693523508402,1.92316417,26048.0,26047.0,2.82701278]
[1693523508579,1.91016417,26048.0,26047.0,2.82743278]
[1693523508802,1.91616417,26048.0,26047.0,2.82819278]
[1693523508957,1.92816417,26048.0,26047.0,2.83129278]
[1693523509136,1.91616417,26048.0,26047.0,2.82917278]
[1693523509348,1.91016417,26048.0,26047.0,2.82881278]
[1693523509543,1.91016417,26048.0,26047.0,2.86125278]
[1693523509544,1.91316417,26048.0,26047.0,2.86125278]
[1693523509794,1.91316417,26048.0,26047.0,2.86473278]
[1693523509963,1.91716417,26048.0,26047.0,2.90025278]
[1693523510182,1.91716417,26048.0,26047.0,2.89971278]
[1693523510411,1.91716417,26048.0,26047.0,2.89953278]
[1693523510749,1.91716417,26048.0,26047.0,2.89779278]
[1693523510881,1.91716417,26048.0,26047.0,2.89731278]
[1693523511084,1.91716417,26048.0,26047.0,2.82933278]
[1693523511506,1.91716417,26048.0,26047.0,2.86933278]
[1693523515827,2.11333377,26048.0,26047.0,2.75153278]
[1693523516029,2.11333377,26048.0,26047.0,2.17565078]
[1693523516408,2.27273377,26048.0,26047.0,2.17565078]
[1693523516840,2.07656417,26048.0,26047.0,2.17565078]
[1693523519330,2.07656417,26048.0,26047.0,2.19942235]
[1693523521271,2.07656417,26048.0,26047.0,1.62354035]
[1693523522265,2.07656417,26048.0,26047.0,1.04765835]
[1693523522817,2.29903977,26048.0,26047.0,0.19677157]
[1693523523145,2.93045216,26048.0,26047.0,0.21677157]
[1693523523380,2.93045216,26048.0,26047.0,0.19677157]
[1693523523381,3.73657576,26048.0,26047.0,0.19677157]
[1693523523583,3.45854677,26048.0,26047.0,0.19677157]
[1693523524191,3.36639981,26048.0,26047.0,0.19677157]
[1693523524626,3.36339981,26048.0,26047.0,0.15977157]
[1693523524799,3.94025881,26048.0,26047.0,0.16777157]
[1693523525044,3.94025881,26048.0,26047.0,0.13177157]
[1693523525045,3.93625881,26048.0,26047.0,0.13177157]
[1693523525178,3.93625881,26048.0,26047.0,0.12677157]
[1693523525375,3.93625881,26048.0,26047.0,0.103]
[1693523525617,3.93725881,26048.0,26047.0,0.111]
[1693523527002,4.14775465,26048.0,26047.0,0.111]
[1693523527486,4.14775465,26048.0,26047.0,0.13473979]
[1693523527717,3.93725881,26048.0,26047.0,0.13473979]
[1693523528886,4.62648983,26048.0,26047.0,0.13473979]
[1693523529088,4.5344114,26048.0,26047.0,0.13473979]
[1693523529281,4.59448699,26048.0,26047.0,0.111]
[1693523530465,4.5344114,26048.0,26047.0,0.111]
[1693523530882,4.3750114,26048.0,26047.0,0.111]
[1693523531635,4.3740114,26048.0,26047.0,0.103]
[1693523531866,4.3930114,26048.0,26047.0,0.105]
[1693523532052,4.3920114,26048.0,26047.0,0.102]
[1693523532473,4.3920114,26048.0,26047.0,0.105]
[1693523532474,4.4160114,26048.0,26047.0,0.105]
[1693523533651,4.5816114,26048.0,26047.0,0.105]
[1693523535979,4.19433723,26048.0,26047.0,0.105]
[1693523538790,4.45521247,26048.0,26047.0,0.105]
[1693523539685,4.37852167,26048.0,26047.0,0.105]
[1693523541639,4.5756169,26048.0,26047.0,0.105]
[1693523541859,4.37852167,26048.0,26047.0,0.105]
[1693523545321,4.14832561,26048.0,26047.0,0.105]
[1693523552035,4.20840158,26048.0,26047.0,0.105]
[1693523552236,4.14832561,26048.0,26047.0,0.105]
[1693523552411,4.20840154,26048.0,26047.0,0.105]
[1693523556226,4.4385976,26048.0,26047.0,0.105]
[1693523556876,4.25441316,26048.0,26047.0,0.105]
[1693523559288,4.37181797,26048.0,26047.0,0.105]
[1693523559490,4.64650869,26048.0,26047.0,0.105]
[1693523559713,4.52870869,26048.0,26047.0,0.105]
[1693523562028,4.91312474,26048.0,26047.0,0.105]
[1693523563339,5.79096002,26048.0,26043.0,0.06933345]
[1693523563481,0.1842709,26044.0,26043.0,0.06933345]
[1693523563662,1.51404283,26044.0,26043.0,0.0202]
[1693523563867,2.08999083,26044.0,26043.0,0.1202]
[1693523564228,2.08999083,26044.0,26043.0,0.14406661]
[1693523564614,2.0319149,26044.0,26043.0,0.15606661]
[1693523564835,2.17011012,26044.0,26043.0,0.15606661]
[1693523564991,2.17011012,26044.0,26043.0,0.15706661]
[1693523565406,1.98583922,26044.0,26043.0,0.15706661]
[1693523565810,2.229417,26044.0,26043.0,0.15606661]
[1693523566009,2.231417,26044.0,26043.0,0.16106661]
[1693523566462,2.32353853,26044.0,26043.0,0.16106661]
[1693523567261,2.67933594,26044.0,26043.0,0.16106661]
[1693523567769,2.32353853,26044.0,26043.0,0.16106661]
[1693523567969,2.47728453,26044.0,26043.0,0.16106661]
[1693523568088,4.19578453,26044.0,26043.0,0.16106661]
[1693523568290,4.24928931,26044.0,26043.0,0.16106661]
[1693523568489,2.16006753,26044.0,26043.0,0.16106661]
[1693523568701,1.9142,26044.0,26043.0,1.24192339]
[1693523568907,1.9142,26044.0,26043.0,2.39386339]
[1693523569105,1.9142,26044.0,26043.0,1.81789339]
[1693523569943,1.9142,26044.0,26043.0,1.24192339]
[1693523570783,1.9142,26044.0,26043.0,0.66595339]
[1693523573330,1.9142,26044.0,26043.0,0.16106661]
[1693523573331,2.89501045,26044.0,26043.0,0.16106661]
[1693523573535,2.79309487,26044.0,26043.0,0.16106661]
[1693523573729,2.21714687,26044.0,26043.0,0.16106661]
[1693523578644,2.12502534,26044.0,26043.0,0.16106661]
[1693523584097,2.79309487,26044.0,26043.0,0.16106661]
[1693523584273,2.58226953,26044.0,26043.0,0.16106661]
[1693523584474,3.9849198,26044.0,26043.0,0.16106661]
[1693523584677,4.14879349,26044.0,26043.0,0.16106661]
[1693523585484,4.36885231,26044.0,26043.0,0.16106661]
[1693523585705,4.53345231,26044.0,26043.0,0.16106661]
[1693523586204,4.62561812,26044.0,26043.0,0.16106661]
[1693523586406,4.62561816,26044.0,26043.0,0.16106661]
[1693523587140,4.34569357,26044.0,26043.0,0.16106661]
[1693523587338,4.25352795,26044.0,26043.0,0.16106661]
[1693523588697,4.03346913,26044.0,26043.0,0.16106661]
[1693523589487,4.21774003,26044.0,26043.0,0.16106661]
[1693523590530,4.07954481,26044.0,26043.0,0.16106661]
[1693523593009,4.35500965,26044.0,26043.0,0.16106661]
[1693523593149,4.07954481,26044.0,26043.0,0.16106661]
[1693523593508,4.3433597,26044.0,26043.0,0.16106661]
[1693523595030,4.07954481,26044.0,26043.0,0.16106661]
[1693523595202,4.30021475,26044.0,26043.0,0.16106661]
[1693523596054,4.07954481,26044.0,26043.0,0.16106661]
[1693523597430,4.31211715,26044.0,26043.0,0.16106661]
[1693523597626,4.07954481,26044.0,26043.0,0.16106661]
[1693523598881,4.28047342,26044.0,26043.0,0.16106661]
[1693523602316,4.51081205,26044.0,26043.0,0.16106661]
[1693523603207,4.30988344,26044.0,26043.0,0.16106661]
[1693523605596,4.55844167,26044.0,26043.0,0.16106661]
[1693523605797,4.37417077,26044.0,26043.0,0.1372]
[1693523606654,4.12561254,26044.0,26043.0,0.1372]
[1693523611375,4.12570966,26044.0,26043.0,0.1372]
[1693523614454,0.02,26043.0,26042.0,0.0202]
[1693523614655,1.34982632,26043.0,26042.0,0.1202]
[1693523614858,1.34982632,26043.0,26042.0,0.0202]
[1693523615061,1.73710049,26043.0,26042.0,0.0202]
[1693523615678,1.75410049,26043.0,26042.0,0.0222]
[1693523615881,1.77410049,26043.0,26042.0,0.0232]
[1693523616111,1.73710049,26043.0,26042.0,0.0202]
[1693523616328,3.10395727,26043.0,26042.0,0.0202]
[1693523616534,3.51248017,26043.0,26042.0,0.0212]
[1693523616739,3.23595727,26043.0,26042.0,0.0212]
[1693523616939,3.47648017,26043.0,26042.0,0.0212]
[1693523617672,3.16395727,26043.0,26042.0,0.0202]
[1693523617876,3.19995727,26043.0,26042.0,0.0212]
[1693523618095,3.23595727,26043.0,26042.0,0.0212]
[1693523618301,3.19995727,26043.0,26042.0,0.0212]
[1693523618514,3.16395727,26043.0,26042.0,0.0202]
[1693523618681,3.23595727,26043.0,26042.0,0.0212]
[1693523619044,2.8486831,26043.0,26042.0,0.0212]
[1693523620032,3.0057831,26043.0,26042.0,0.0212]
[1693523640318,2.9457831,26043.0,26042.0,0.0212]
[1693523641652,3.222306,26043.0,26042.0,0.0212]
[1693523644094,3.287646,26043.0,26042.0,0.0212]
[1693523644334,3.222306,26043.0,26042.0,0.0212]
[1693523644538,3.60958017,26043.0,26042.0,0.0212]
[1693523645327,3.67480017,26043.0,26042.0,0.0212]
[1693523645624,3.60958017,26043.0,26042.0,0.0212]
[1693523646041,3.66958017,26043.0,26042.0,0.0212]
[1693523646244,3.73504017,26043.0,26042.0,0.0212]
[1693523646448,3.73558017,26043.0,26042.0,0.0212]
[1693523646653,3.73420017,26043.0,26042.0,0.0212]
[1693523646861,3.66958017,26043.0,26042.0,0.0212]
[1693523647892,3.73420017,26043.0,26042.0,0.0212]
[1693523648092,3.66958017,26043.0,26042.0,0.0212]
[1693523650698,3.39305727,26043.0,26042.0,0.0212]
[1693523654381,3.55621727,26043.0,26042.0,0.0212]
[1693523654590,2.880225,26040.0,26034.0,0.04943257]
[1693523654794,1.270094,26035.0,26034.0,0.04943257]
[1693523654970,1.42492871,26035.0,26034.0,0.1]
[1693523655171,1.270094,26035.0,26034.0,0.1]
[1693523655464,1.423888,26035.0,26034.0,0.1]
[1693523655701,2.000035,26035.0,26034.0,0.1]
[1693523656533,2.002035,26035.0,26034.0,0.1]
[1693523657148,2.22229832,26035.0,26034.0,0.1]
[1693523657285,2.002035,26035.0,26034.0,0.1]
[1693523657659,2.11813652,26035.0,26034.0,0.1]
[1693523657862,2.36799945,26035.0,26034.0,0.1]
[1693523658106,2.11813652,26035.0,26034.0,0.1]
[1693523658479,2.11013652,26035.0,26034.0,0.1]
[1693523658680,2.11013652,26035.0,26034.0,0.1216164]
[1693523658891,2.36704468,26035.0,26034.0,0.1216164]
[1693523659282,2.12513652,26035.0,26034.0,0.1216164]
[1693523659517,2.3517634,26035.0,26034.0,0.1]
[1693523659720,2.46394855,26035.0,26034.0,0.1]
[1693523659902,2.44894855,26035.0,26034.0,0.1]
[1693523660109,2.22232167,26035.0,26034.0,0.1]
[1693523660310,2.44569909,26035.0,26034.0,0.1]
[1693523660510,2.35351394,26035.0,26034.0,0.1]
[1693523661510,2.14513652,26035.0,26034.0,0.1]
[1693523663300,2.38767861,26035.0,26034.0,0.1]
[1693523663498,2.36976224,26035.0,26034.0,0.1]
[1693523664027,2.50803997,26035.0,26034.0,0.1]
[1693523664627,2.36976224,26035.0,26034.0,0.1]
[1693523665013,2.12722015,26035.0,26034.0,0.1]
[1693523665210,2.39124598,26035.0,26034.0,0.1]
[1693523666395,2.51449432,26035.0,26034.0,0.1]
[1693523666781,2.75515258,26035.0,26034.0,0.1]
[1693523666936,2.51449432,26035.0,26034.0,0.1]
[1693523667367,2.76378004,26035.0,26034.0,0.1]
[1693523667796,1.70817372,26035.0,26034.0,0.1]
[1693523668171,1.70817372,26035.0,26034.0,0.1216164]
[1693523669763,0.188794,26035.0,26034.0,0.1216164]
[1693523669981,1.7283,26035.0,26034.0,0.2394164]
[1693523670185,1.92,26035.0,26034.0,0.2394164]
[1693523670602,1.92,26035.0,26034.0,2.35501018]
[1693523670974,1.885,26035.0,26034.0,2.35501018]
[1693523671236,1.887,26035.0,26034.0,2.35701018]
[1693523671440,1.89,26035.0,26034.0,2.36001018]
[1693523672488,1.888,26035.0,26034.0,2.35801018]
[1693523672689,1.891,26035.0,26034.0,1.78384118]
[1693523673695,1.891,26035.0,26034.0,1.20767218]
[1693523680042,1.891,26035.0,26034.0,0.63150318]
[1693523680250,3.30974841,26035.0,26034.0,0.1266164]
[1693523680456,2.73360141,26035.0,26034.0,0.1266164]
[1693523682721,2.73360141,26035.0,26034.0,0.105]
[1693523685058,1.88799995,26035.0,26034.0,0.105]
[1693523685461,1.88799995,26035.0,26034.0,0.12591204]
[1693523689085,1.88799995,26035.0,26034.0,0.51299882]
[1693523690305,2.13543897,26035.0,26034.0,0.51299882]
[1693523695515,1.88799995,26035.0,26034.0,0.51299882]
[1693523698048,2.05349995,26035.0,26034.0,0.51299882]
[1693523703191,2.05349995,26035.0,26034.0,0.70299882]
[1693523705098,2.05349995,26035.0,26034.0,1.97313682]
[1693523705302,1.88799995,26035.0,26034.0,1.97313682]
[1693523706677,1.88799995,26035.0,26034.0,1.39696782]
[1693523710669,1.87799995,26035.0,26034.0,1.39696782]
[1693523717042,1.87799995,26035.0,26034.0,1.27916782]
[1693523718700,2.03309995,26035.0,26034.0,1.27916782]
[1693523727702,2.03309995,26035.0,26034.0,0.70299882]
[1693523732495,2.03309995,26035.0,26034.0,0.71097157]
[1693523741524,1.87799995,26035.0,26034.0,2.76549857]
[1693523741762,1.87799995,26035.0,26034.0,3.65970057]
[1693523741994,1.87799995,26035.0,26034.0,4.35879067]
[1693523742194,1.87799995,26035.0,26034.0,4.32034268]
[1693523742395,1.87499995,26035.0,26034.0,5.61537482]
[1693523742660,1.87499995,26035.0,26034.0,5.4831166]
[1693523742900,1.87199995,26035.0,26034.0,4.37786515]
[1693523743072,1.87199995,26035.0,26034.0,4.39562515]
[1693523743073,1.87599995,26035.0,26034.0,4.39562515]
[1693523743245,1.87999995,26035.0,26034.0,4.37328354]
[1693523743574,1.87599995,26035.0,26034.0,4.28715858]
[1693523743773,1.87599995,26035.0,26034.0,3.82746435]
[1693523743985,1.87599995,26035.0,26034.0,3.82734435]
[1693523744206,1.87599995,26035.0,26034.0,3.68914527]
[1693523744411,1.87599995,26035.0,26034.0,3.68890527]
[1693523744608,1.87599995,26035.0,26034.0,3.68884527]
[1693523744816,1.87599995,26035.0,26034.0,3.68872527]
[1693523745013,1.87599995,26035.0,26034.0,3.71444527]
[1693523745014,1.87999995,26035.0,26034.0,3.71444527]
[1693523745213,1.87999995,26035.0,26034.0,3.62185023]
[1693523745413,1.87999995,26035.0,26034.0,3.71372527]
[1693523745591,1.87999995,26035.0,26034.0,3.71402527]
[1693523745799,1.87999995,26035.0,26034.0,3.71396527]
[1693523746017,1.87999995,26035.0,26034.0,3.71426527]
[1693523746241,1.87999995,26035.0,26034.0,3.71396527]
[1693523746490,1.87999995,26035.0,26034.0,3.61945023]
[1693523746669,1.87999995,26035.0,26034.0,3.70940527]
[1693523747115,1.87999995,26035.0,26034.0,3.61741023]
[1693523747246,1.87999995,26035.0,26034.0,3.61843023]
[1693523747592,1.87999995,26035.0,26034.0,3.61891023]
[1693523748011,1.87999995,26035.0,26034.0,3.61897023]
[1693523748386,1.87999995,26035.0,26034.0,3.61849023]
[1693523748587,1.87999995,26035.0,26034.0,3.61855023]
[1693523748792,1.87999995,26035.0,26034.0,3.61903023]
[1693523748993,1.87999995,26035.0,26034.0,3.61909023]
[1693523749195,1.87999995,26035.0,26034.0,3.61939023]
[1693523749394,1.87999995,26035.0,26034.0,3.61915023]
[1693523749552,1.87999995,26035.0,26034.0,3.61861023]
[1693523749753,1.87999995,26035.0,26034.0,3.61957023]
[1693523750269,1.87999995,26035.0,26034.0,3.81160023]
[1693523750646,1.87999995,26035.0,26034.0,3.81166023]
[1693523751059,1.87999995,26035.0,26034.0,3.81196023]
[1693523751464,1.87999995,26035.0,26034.0,3.81136023]
[1693523751667,1.87999995,26035.0,26034.0,3.81250023]
[1693523751887,1.87999995,26035.0,26034.0,3.81256023]
[1693523752297,1.87999995,26035.0,26034.0,3.81262023]
[1693523752471,1.87999995,26035.0,26034.0,3.81256023]
[1693523752673,1.87999995,26035.0,26034.0,3.81304023]
[1693523752923,1.87999995,26035.0,26034.0,3.81286023]
[1693523753125,1.87999995,26035.0,26034.0,3.81316023]
[1693523753327,1.87999995,26035.0,26034.0,3.81268023]
[1693523753469,1.87999995,26035.0,26034.0,3.84427649]
[1693523753671,1.87999995,26035.0,26034.0,3.84403649]
[1693523753875,1.87999995,26035.0,26034.0,3.84331649]
[1693523754078,1.87999995,26035.0,26034.0,3.84307649]
[1693523754348,1.87999995,26035.0,26034.0,3.84313649]
[1693523754538,1.87999995,26035.0,26034.0,3.84331649]
[1693523754739,1.87999995,26035.0,26034.0,3.84307649]
[1693523754940,1.87999995,26035.0,26034.0,3.84427649]
[1693523755143,1.87999995,26035.0,26034.0,3.84445649]
[1693523755354,1.87999995,26035.0,26034.0,3.84451649]
[1693523755526,1.87999995,26035.0,26034.0,3.84409649]
[1693523755738,1.87999995,26035.0,26034.0,3.84469649]
[1693523755915,1.87999995,26035.0,26034.0,3.84433649]
[1693523756486,1.87999995,26035.0,26034.0,3.84439649]
[1693523756605,1.87999995,26035.0,26034.0,3.84445649]
[1693523757006,1.87999995,26035.0,26034.0,3.84469649]
[1693523757275,1.87999995,26035.0,26034.0,3.84361649]
[1693523757474,1.87999995,26035.0,26034.0,3.84325649]
[1693523757713,1.87999995,26035.0,26034.0,3.84307649]
[1693523758116,1.87999995,26035.0,26034.0,3.84499649]
[1693523758319,1.87999995,26035.0,26034.0,3.84493649]
[1693523758529,1.87999995,26035.0,26034.0,3.84487649]
[1693523758679,1.87999995,26035.0,26034.0,3.84499649]
[1693523758875,1.87999995,26035.0,26034.0,3.65493649]
[1693523759114,2.03483466,26035.0,26034.0,2.98537483]
[1693523759310,1.87999995,26035.0,26034.0,1.16266323]
[1693523759513,1.87999995,26035.0,26034.0,0.72497157]
[1693523759740,1.87999995,26035.0,26034.0,0.62497157]
[1693523760701,1.87599995,26035.0,26034.0,0.59997157]
[1693523760902,1.87999995,26035.0,26034.0,0.62297157]
[1693523761177,1.87599995,26035.0,26034.0,0.59897157]
[1693523761739,1.87899995,26035.0,26034.0,0.61997157]
[1693523764172,1.87899995,26035.0,26034.0,0.73777157]
[1693523766660,2.14143393,26035.0,26034.0,0.61997157]
[1693523767444,2.14143393,26035.0,26034.0,0.57997157]
[1693523767849,2.30133393,26035.0,26034.0,0.57997157]
[1693523768045,2.03889995,26035.0,26034.0,0.57997157]
[1693523772099,2.03889995,26035.0,26034.0,0.76997157]
[1693523776937,2.03889995,26035.0,26034.0,1.92230957]
[1693523777151,2.03889995,26035.0,26034.0,2.04010957]
[1693523780005,2.03889995,26035.0,26034.0,2.61627857]
[1693523783448,2.03889995,26035.0,26034.0,1.92230957]